[Event "Titled Tuesday Blitz June 15 2021"]
[White "Shipov, Sergei"]
[Black "Ibrayev, Nurlan"]
[WhiteFideId "4113624"]
[BlackFideId "13700650"]
[WhiteElo "2774"]
[BlackElo "2549"]
[Result "1-0"]
[Round "04"]
[TimeControl "180+1"]
[Date "2021.06.15"]
[WhiteClock "0:00:09"]
[BlackClock "0:00:05"]

1. d4 {[%clk 0:03:00]}  Nf6 {[%clk 0:02:59]} 2. c4 {[%clk 0:02:59]}  e6 {[%clk 0:02:59]} 3. Nc3 {[%clk 0:02:59]}  Bb4 {[%clk 0:02:58]} 4. e3 {[%clk 0:02:58]}  O-O {[%clk 0:02:58]} 5. Ne2 {[%clk 0:02:58]}  Re8 {[%clk 0:02:58]} 6. a3 {[%clk 0:02:55]}  Bf8 {[%clk 0:02:58]} 7. d5 {[%clk 0:02:56]}  d6 {[%clk 0:02:54]} 8. Ng3 {[%clk 0:02:56]}  c6 {[%clk 0:02:54]} 9. Be2 {[%clk 0:02:54]}  Na6 {[%clk 0:02:37]} 10. b4 {[%clk 0:02:46]}  Nc7 {[%clk 0:02:37]} 11. e4 {[%clk 0:02:37]}  exd5 {[%clk 0:02:11]} 12. exd5 {[%clk 0:02:36]}  cxd5 {[%clk 0:02:02]} 13. cxd5 {[%clk 0:02:36]}  a5 {[%clk 0:02:01]} 14. b5 {[%clk 0:02:33]}  Bg4 {[%clk 0:01:45]} 15. f3 {[%clk 0:02:32]}  Bd7 {[%clk 0:01:42]} 16. O-O {[%clk 0:02:31]}  Rc8 {[%clk 0:01:35]} 17. Kh1 {[%clk 0:01:58]}  Re5 {[%clk 0:01:18]} 18. f4 {[%clk 0:01:41]}  Nfxd5 {[%clk 0:00:58]} 19. fxe5 {[%clk 0:01:40]}  Nxc3 {[%clk 0:00:55]} 20. Qb3 {[%clk 0:01:35]}  N7d5 {[%clk 0:00:32]} 21. Bf3 {[%clk 0:01:00]}  Be6 {[%clk 0:00:28]} 22. Qb2 {[%clk 0:00:49]}  dxe5 {[%clk 0:00:21]} 23. Bd2 {[%clk 0:00:49]}  f6 {[%clk 0:00:14]} 24. Rac1 {[%clk 0:00:46]}  Na4 {[%clk 0:00:10]} 25. Rxc8 {[%clk 0:00:46]}  Qxc8 {[%clk 0:00:08]} 26. Qb3 {[%clk 0:00:46]}  Nc5 {[%clk 0:00:05]} 27. Qc2 {[%clk 0:00:45]}  Qd7 {[%clk 0:00:03]} 28. a4 {[%clk 0:00:27]}  b6 {[%clk 0:00:03]} 29. Rd1 {[%clk 0:00:26]}  h6 {[%clk 0:00:02]} 30. Bc1 {[%clk 0:00:22]}  Qf7 {[%clk 0:00:02]} 31. Ne4 {[%clk 0:00:20]}  Nb4 {[%clk 0:00:02]} 32. Qf2 {[%clk 0:00:19]}  Nxe4 {[%clk 0:00:02]} 33. Bxe4 {[%clk 0:00:19]}  Bb3 {[%clk 0:00:02]} 34. Rd8 {[%clk 0:00:18]}  Bxa4 {[%clk 0:00:02]} 35. Qxb6 {[%clk 0:00:16]}  Qc4 {[%clk 0:00:01]} 36. Qe3 {[%clk 0:00:11]}  Qf1+ {[%clk 0:00:01]} 37. Qg1 {[%clk 0:00:11]}  Qxg1+ {[%clk 0:00:01]} 38. Kxg1 {[%clk 0:00:11]}  Bxb5 {[%clk 0:00:02]} 39. Be3 {[%clk 0:00:11]}  Kf7 {[%clk 0:00:03]} 40. Rb8 {[%clk 0:00:10]}  Be7 {[%clk 0:00:04]} 41. Rxb5 {[%clk 0:00:10]}  Nc2 {[%clk 0:00:05]} 42. Bxc2 {[%clk 0:00:09]}  Bb4 {[%clk 0:00:05]} 43. Bb3+ {[%clk 0:00:09]} 1-0


[Site "https://www.chess.com"]

[Event "Titled Tuesday Blitz June 15 2021"]
[White "Sjugirov, Sanan"]
[Black "Suvorov, Alexander"]
[WhiteFideId "4189302"]
[BlackFideId "12977063"]
[WhiteElo "2939"]
[BlackElo "2575"]
[Result "1-0"]
[Round "04"]
[TimeControl "180+1"]
[Date "2021.06.15"]
[WhiteClock "0:00:51"]
[BlackClock "0:00:06"]

1. e4 {[%clk 0:03:00]}  c5 {[%clk 0:02:59]} 2. Nf3 {[%clk 0:03:00]}  e6 {[%clk 0:03:00]} 3. d4 {[%clk 0:03:00]}  cxd4 {[%clk 0:03:00]} 4. Nxd4 {[%clk 0:03:01]}  Nc6 {[%clk 0:03:01]} 5. Nc3 {[%clk 0:03:01]}  Qc7 {[%clk 0:03:02]} 6. g3 {[%clk 0:02:54]}  a6 {[%clk 0:02:58]} 7. Bg2 {[%clk 0:02:54]}  Nf6 {[%clk 0:02:44]} 8. O-O {[%clk 0:02:54]}  Nxd4 {[%clk 0:02:39]} 9. Qxd4 {[%clk 0:02:55]}  Bc5 {[%clk 0:02:36]} 10. Bf4 {[%clk 0:02:54]}  d6 {[%clk 0:02:34]} 11. Qd2 {[%clk 0:02:54]}  Nd7 {[%clk 0:02:34]} 12. Rad1 {[%clk 0:02:47]}  Ne5 {[%clk 0:02:30]} 13. Na4 {[%clk 0:02:45]}  O-O {[%clk 0:01:45]} 14. Nxc5 {[%clk 0:02:43]}  dxc5 {[%clk 0:01:45]} 15. Qc3 {[%clk 0:02:40]}  f6 {[%clk 0:01:45]} 16. Bxe5 {[%clk 0:02:38]}  fxe5 {[%clk 0:01:42]} 17. Qd2 {[%clk 0:02:32]}  b5 {[%clk 0:01:21]} 18. Qd6 {[%clk 0:02:31]}  Ra7 {[%clk 0:01:21]} 19. Bh3 {[%clk 0:02:29]}  Re8 {[%clk 0:01:02]} 20. c3 {[%clk 0:02:17]}  Qxd6 {[%clk 0:00:57]} 21. Rxd6 {[%clk 0:02:18]}  Rc7 {[%clk 0:00:58]} 22. Rfd1 {[%clk 0:02:17]}  Kf7 {[%clk 0:00:55]} 23. f4 {[%clk 0:02:02]}  exf4 {[%clk 0:00:30]} 24. gxf4 {[%clk 0:02:03]}  e5 {[%clk 0:00:19]} 25. Bxc8 {[%clk 0:02:02]}  Rexc8 {[%clk 0:00:20]} 26. f5 {[%clk 0:01:59]}  Re8 {[%clk 0:00:18]} 27. Rxa6 {[%clk 0:01:57]}  g6 {[%clk 0:00:19]} 28. fxg6+ {[%clk 0:01:54]}  hxg6 {[%clk 0:00:20]} 29. Rdd6 {[%clk 0:01:54]}  b4 {[%clk 0:00:17]} 30. c4 {[%clk 0:01:52]}  Rg8 {[%clk 0:00:15]} 31. Kf2 {[%clk 0:01:50]}  Rh8 {[%clk 0:00:14]} 32. Kg3 {[%clk 0:01:50]}  Rg8 {[%clk 0:00:11]} 33. Rf6+ {[%clk 0:01:50]}  Ke7 {[%clk 0:00:11]} 34. Rxg6 {[%clk 0:01:50]}  Rxg6+ {[%clk 0:00:10]} 35. Rxg6 {[%clk 0:01:50]}  Rc8 {[%clk 0:00:11]} 36. h4 {[%clk 0:01:10]}  Ra8 {[%clk 0:00:11]} 37. h5 {[%clk 0:01:08]}  Rxa2 {[%clk 0:00:07]} 38. h6 {[%clk 0:01:07]}  Ra8 {[%clk 0:00:06]} 39. Kg4 {[%clk 0:01:06]}  Kf7 {[%clk 0:00:05]} 40. Kg5 {[%clk 0:01:05]}  Ra1 {[%clk 0:00:05]} 41. Rg7+ {[%clk 0:01:04]}  Ke6 {[%clk 0:00:05]} 42. Rg6+ {[%clk 0:01:01]}  Kf7 {[%clk 0:00:04]} 43. Rf6+ {[%clk 0:01:00]}  Ke7 {[%clk 0:00:05]} 44. Rc6 {[%clk 0:00:58]}  Rg1+ {[%clk 0:00:05]} 45. Kf5 {[%clk 0:00:59]}  Rh1 {[%clk 0:00:05]} 46. Kxe5 {[%clk 0:00:56]}  Rh5+ {[%clk 0:00:05]} 47. Kf4 {[%clk 0:00:57]}  Rh2 {[%clk 0:00:06]} 48. Rxc5 {[%clk 0:00:52]}  Rxh6 {[%clk 0:00:06]} 49. Rb5 {[%clk 0:00:51]}  Rf6+ {[%clk 0:00:06]} 50. Ke3 {[%clk 0:00:51]} 1-0


[Site "https://www.chess.com"]

[Event "Titled Tuesday Blitz June 15 2021"]
[White "Sychev, Klementy"]
[Black "Petriashvili, Nikoloz"]
[WhiteFideId "4114060"]
[BlackFideId "13611216"]
[WhiteElo "2615"]
[BlackElo "2430"]
[Result "1-0"]
[Round "04"]
[TimeControl "180+1"]
[Date "2021.06.15"]
[WhiteClock "0:00:08"]
[BlackClock "0:00:04"]

1. e4 {[%clk 0:03:00]}  c6 {[%clk 0:03:00]} 2. Nc3 {[%clk 0:02:54]}  d5 {[%clk 0:03:01]} 3. Qf3 {[%clk 0:02:54]}  d4 {[%clk 0:02:47]} 4. Bc4 {[%clk 0:02:53]}  e6 {[%clk 0:02:42]} 5. Nce2 {[%clk 0:02:52]}  c5 {[%clk 0:02:42]} 6. d3 {[%clk 0:02:53]}  Nc6 {[%clk 0:02:41]} 7. Qg3 {[%clk 0:02:52]}  a6 {[%clk 0:02:30]} 8. a3 {[%clk 0:02:48]}  Nf6 {[%clk 0:02:08]} 9. f4 {[%clk 0:02:46]}  g6 {[%clk 0:02:07]} 10. Nf3 {[%clk 0:02:45]}  Be7 {[%clk 0:02:04]} 11. O-O {[%clk 0:02:43]}  Qc7 {[%clk 0:02:02]} 12. Qh3 {[%clk 0:02:40]}  Bd7 {[%clk 0:01:49]} 13. Bd2 {[%clk 0:02:38]}  h5 {[%clk 0:01:16]} 14. Ng5 {[%clk 0:02:33]}  Ng4 {[%clk 0:01:15]} 15. Nf3 {[%clk 0:02:10]}  f5 {[%clk 0:00:50]} 16. Rfe1 {[%clk 0:01:57]}  O-O-O {[%clk 0:00:48]} 17. exf5 {[%clk 0:01:47]}  gxf5 {[%clk 0:00:46]} 18. b4 {[%clk 0:01:46]}  Ne3 {[%clk 0:00:42]} 19. Bb3 {[%clk 0:01:35]}  Rdg8 {[%clk 0:00:34]} 20. Bxe3 {[%clk 0:01:29]}  dxe3 {[%clk 0:00:35]} 21. Ng5 {[%clk 0:01:13]}  Bxg5 {[%clk 0:00:27]} 22. fxg5 {[%clk 0:01:14]}  Rxg5 {[%clk 0:00:28]} 23. Qxe3 {[%clk 0:01:14]}  e5 {[%clk 0:00:26]} 24. Qxc5 {[%clk 0:01:07]}  f4 {[%clk 0:00:20]} 25. Qf2 {[%clk 0:01:07]}  h4 {[%clk 0:00:18]} 26. Kh1 {[%clk 0:00:54]}  Rh7 {[%clk 0:00:19]} 27. h3 {[%clk 0:00:50]}  Qd6 {[%clk 0:00:18]} 28. Nc3 {[%clk 0:00:47]}  Bf5 {[%clk 0:00:18]} 29. Ne4 {[%clk 0:00:44]}  Bxe4 {[%clk 0:00:18]} 30. Rxe4 {[%clk 0:00:45]}  Rhg7 {[%clk 0:00:18]} 31. Rg1 {[%clk 0:00:45]}  Rg3 {[%clk 0:00:18]} 32. Kh2 {[%clk 0:00:35]}  f3 {[%clk 0:00:18]} 33. Kh1 {[%clk 0:00:30]}  Qg6 {[%clk 0:00:07]} 34. Rxh4 {[%clk 0:00:26]}  Nd4 {[%clk 0:00:06]} 35. Bd5 {[%clk 0:00:21]}  Rxg2 {[%clk 0:00:04]} 36. Rxg2 {[%clk 0:00:19]}  fxg2+ {[%clk 0:00:05]} 37. Bxg2 {[%clk 0:00:17]}  Qg5 {[%clk 0:00:04]} 38. Rg4 {[%clk 0:00:08]}  Qc1+ {[%clk 0:00:04]} 39. Kh2 {[%clk 0:00:09]}  Rc7 {[%clk 0:00:04]} 40. Rg8+ {[%clk 0:00:08]} 1-0


[Site "https://www.chess.com"]

[Event "Titled Tuesday Blitz June 15 2021"]
[White "Tarlabasi, Emirhan"]
[Black "Turgut, Aydin"]
[WhiteFideId "6350275"]
[BlackFideId "2078791"]
[WhiteElo "1949"]
[BlackElo "2138"]
[Result "0-1"]
[Round "04"]
[TimeControl "180+1"]
[Date "2021.06.15"]
[WhiteClock "0:00:45"]
[BlackClock "0:00:29"]

1. Nf3 {[%clk 0:03:00]}  Nf6 {[%clk 0:02:59]} 2. c4 {[%clk 0:03:01]}  e6 {[%clk 0:02:59]} 3. b3 {[%clk 0:03:01]}  b6 {[%clk 0:02:55]} 4. Bb2 {[%clk 0:03:02]}  Bb7 {[%clk 0:02:55]} 5. g3 {[%clk 0:02:58]}  d5 {[%clk 0:02:53]} 6. Bg2 {[%clk 0:02:56]}  Nbd7 {[%clk 0:02:53]} 7. O-O {[%clk 0:02:55]}  Be7 {[%clk 0:02:54]} 8. d4 {[%clk 0:02:55]}  O-O {[%clk 0:02:53]} 9. Nc3 {[%clk 0:02:56]}  Re8 {[%clk 0:02:52]} 10. Qc2 {[%clk 0:02:55]}  Rc8 {[%clk 0:02:49]} 11. Rac1 {[%clk 0:02:53]}  a6 {[%clk 0:02:48]} 12. Rfd1 {[%clk 0:02:53]}  Bd6 {[%clk 0:02:31]} 13. Qb1 {[%clk 0:02:52]}  h6 {[%clk 0:02:25]} 14. Nd2 {[%clk 0:02:47]}  c5 {[%clk 0:01:52]} 15. cxd5 {[%clk 0:02:31]}  exd5 {[%clk 0:01:44]} 16. Nf3 {[%clk 0:02:28]}  c4 {[%clk 0:01:41]} 17. e3 {[%clk 0:01:58]}  b5 {[%clk 0:01:40]} 18. bxc4 {[%clk 0:01:53]}  dxc4 {[%clk 0:01:36]} 19. a3 {[%clk 0:01:47]}  Ne4 {[%clk 0:01:20]} 20. Nd2 {[%clk 0:01:40]}  Nxd2 {[%clk 0:01:09]} 21. Rxd2 {[%clk 0:01:38]}  Bxg2 {[%clk 0:01:09]} 22. Kxg2 {[%clk 0:01:39]}  Qb6 {[%clk 0:01:02]} 23. Ba1 {[%clk 0:01:34]}  Bxa3 {[%clk 0:01:00]} 24. Rcd1 {[%clk 0:01:30]}  Bf8 {[%clk 0:00:59]} 25. Qf5 {[%clk 0:01:21]}  Nf6 {[%clk 0:00:53]} 26. d5 {[%clk 0:01:18]}  b4 {[%clk 0:00:52]} 27. Na4 {[%clk 0:01:17]}  Qd6 {[%clk 0:00:37]} 28. f4 {[%clk 0:01:02]}  c3 {[%clk 0:00:35]} 29. Re2 {[%clk 0:00:56]}  Rc4 {[%clk 0:00:30]} 30. e4 {[%clk 0:00:49]}  Rcxe4 {[%clk 0:00:28]} 31. Rde1 {[%clk 0:00:46]}  Rxe2+ {[%clk 0:00:28]} 32. Rxe2 {[%clk 0:00:44]}  Rxe2+ {[%clk 0:00:29]} 33. Kf3 {[%clk 0:00:45]}  Ra2 {[%clk 0:00:29]} 0-1


[Site "https://www.chess.com"]

[Event "Titled Tuesday Blitz June 15 2021"]
[White "Timofeev, Artyom"]
[Black "Siddharth, Jagadeesh"]
[WhiteFideId "4140419"]
[BlackFideId "5818320"]
[WhiteElo "2790"]
[BlackElo "2551"]
[Result "1-0"]
[Round "04"]
[TimeControl "180+1"]
[Date "2021.06.15"]
[WhiteClock "0:00:08"]
[BlackClock "0:00:02"]

1. c4 {[%clk 0:03:00]}  c5 {[%clk 0:02:59]} 2. Nf3 {[%clk 0:02:59]}  Nf6 {[%clk 0:02:59]} 3. Nc3 {[%clk 0:02:59]}  Nc6 {[%clk 0:02:59]} 4. d4 {[%clk 0:02:55]}  cxd4 {[%clk 0:03:00]} 5. Nxd4 {[%clk 0:02:55]}  e6 {[%clk 0:02:59]} 6. g3 {[%clk 0:02:53]}  Qb6 {[%clk 0:02:58]} 7. Nb3 {[%clk 0:02:48]}  Ne5 {[%clk 0:02:57]} 8. e4 {[%clk 0:02:47]}  Bb4 {[%clk 0:02:57]} 9. Qe2 {[%clk 0:02:34]}  d6 {[%clk 0:02:55]} 10. f4 {[%clk 0:02:33]}  Nc6 {[%clk 0:02:44]} 11. Be3 {[%clk 0:02:28]}  Qc7 {[%clk 0:02:44]} 12. Bg2 {[%clk 0:02:27]}  Bxc3+ {[%clk 0:02:40]} 13. bxc3 {[%clk 0:02:27]}  e5 {[%clk 0:02:41]} 14. O-O {[%clk 0:02:26]}  b6 {[%clk 0:02:26]} 15. f5 {[%clk 0:02:14]}  Ba6 {[%clk 0:02:16]} 16. g4 {[%clk 0:02:09]}  Nd7 {[%clk 0:01:50]} 17. g5 {[%clk 0:02:06]}  Na5 {[%clk 0:01:50]} 18. Nxa5 {[%clk 0:02:04]}  bxa5 {[%clk 0:01:50]} 19. Rfd1 {[%clk 0:02:00]}  Nb6 {[%clk 0:01:38]} 20. Bf2 {[%clk 0:01:52]}  Nxc4 {[%clk 0:01:28]} 21. h4 {[%clk 0:01:39]}  Rb8 {[%clk 0:01:15]} 22. Rab1 {[%clk 0:01:34]}  O-O {[%clk 0:01:05]} 23. Rb3 {[%clk 0:01:22]}  a4 {[%clk 0:00:32]} 24. Rb4 {[%clk 0:01:22]}  Qc6 {[%clk 0:00:27]} 25. Re1 {[%clk 0:01:04]}  a3 {[%clk 0:00:15]} 26. f6 {[%clk 0:00:59]}  g6 {[%clk 0:00:15]} 27. h5 {[%clk 0:00:59]}  Nb2 {[%clk 0:00:14]} 28. Qg4 {[%clk 0:00:51]}  Nd3 {[%clk 0:00:12]} 29. Rxb8 {[%clk 0:00:51]}  Rxb8 {[%clk 0:00:13]} 30. hxg6 {[%clk 0:00:51]}  hxg6 {[%clk 0:00:12]} 31. Qh4 {[%clk 0:00:49]}  Qe8 {[%clk 0:00:03]} 32. Re3 {[%clk 0:00:39]}  Nf4 {[%clk 0:00:04]} 33. c4 {[%clk 0:00:25]}  Bxc4 {[%clk 0:00:03]} 34. Rxa3 {[%clk 0:00:25]}  Rb1+ {[%clk 0:00:03]} 35. Kh2 {[%clk 0:00:25]}  a6 {[%clk 0:00:03]} 36. Be3 {[%clk 0:00:19]}  Rb2 {[%clk 0:00:03]} 37. Bxf4 {[%clk 0:00:19]}  Be6 {[%clk 0:00:03]} 38. Bc1 {[%clk 0:00:11]}  Rc2 {[%clk 0:00:03]} 39. Be3 {[%clk 0:00:11]}  Qf8 {[%clk 0:00:02]} 40. Rd3 {[%clk 0:00:09]}  d5 {[%clk 0:00:02]} 41. exd5 {[%clk 0:00:09]}  Bf5 {[%clk 0:00:02]} 42. Rd2 {[%clk 0:00:09]}  Rxd2 {[%clk 0:00:03]} 43. Bxd2 {[%clk 0:00:10]}  e4 {[%clk 0:00:04]} 44. Qg3 {[%clk 0:00:10]}  Qa3 {[%clk 0:00:03]} 45. Qb8+ {[%clk 0:00:09]}  Kh7 {[%clk 0:00:03]} 46. Qg3 {[%clk 0:00:10]}  Qb2 {[%clk 0:00:02]} 47. Qh4+ {[%clk 0:00:09]}  Kg8 {[%clk 0:00:03]} 48. Bf4 {[%clk 0:00:09]}  Qb7 {[%clk 0:00:02]} 49. Qh6 {[%clk 0:00:08]} 1-0


[Site "https://www.chess.com"]

[Event "Titled Tuesday Blitz June 15 2021"]
[White "Toncheva, Nadya"]
[Black "Ponkratov, Pavel"]
[WhiteFideId "2924056"]
[BlackFideId "4157800"]
[WhiteElo "1920"]
[BlackElo "2636"]
[Result "0-1"]
[Round "04"]
[TimeControl "180+1"]
[Date "2021.06.15"]
[WhiteClock "0:00:04"]
[BlackClock "0:00:23"]

1. d4 {[%clk 0:03:00]}  c5 {[%clk 0:03:00]} 2. d5 {[%clk 0:03:01]}  e5 {[%clk 0:03:00]} 3. c4 {[%clk 0:03:01]}  h5 {[%clk 0:03:01]} 4. Nc3 {[%clk 0:03:01]}  h4 {[%clk 0:03:01]} 5. e4 {[%clk 0:02:59]}  d6 {[%clk 0:03:01]} 6. h3 {[%clk 0:02:53]}  Nf6 {[%clk 0:03:01]} 7. Bd3 {[%clk 0:02:51]}  Be7 {[%clk 0:02:59]} 8. Nf3 {[%clk 0:02:50]}  Nh5 {[%clk 0:02:58]} 9. Bc2 {[%clk 0:02:43]}  a6 {[%clk 0:02:57]} 10. a3 {[%clk 0:02:37]}  Nd7 {[%clk 0:02:55]} 11. Be3 {[%clk 0:02:32]}  Nf8 {[%clk 0:02:54]} 12. b4 {[%clk 0:02:29]}  b6 {[%clk 0:02:54]} 13. bxc5 {[%clk 0:02:29]}  bxc5 {[%clk 0:02:54]} 14. Ba4+ {[%clk 0:02:28]}  Bd7 {[%clk 0:02:54]} 15. Rb1 {[%clk 0:02:24]}  Ra7 {[%clk 0:02:52]} 16. Nxe5 {[%clk 0:01:37]}  dxe5 {[%clk 0:02:48]} 17. d6 {[%clk 0:01:38]}  Qa5 {[%clk 0:01:59]} 18. dxe7 {[%clk 0:00:45]}  Qxc3+ {[%clk 0:01:48]} 19. Bd2 {[%clk 0:00:43]}  Qxc4 {[%clk 0:01:40]} 20. exf8=Q+ {[%clk 0:00:40]}  Kxf8 {[%clk 0:01:30]} 21. Rb8+ {[%clk 0:00:32]}  Ke7 {[%clk 0:01:30]} 22. Rxh8 {[%clk 0:00:26]}  Bxa4 {[%clk 0:01:23]} 23. Qe2 {[%clk 0:00:25]}  Qxe2+ {[%clk 0:01:13]} 24. Kxe2 {[%clk 0:00:25]}  g6 {[%clk 0:01:14]} 25. Rc1 {[%clk 0:00:24]}  Bb5+ {[%clk 0:01:14]} 26. Ke1 {[%clk 0:00:21]}  Rc7 {[%clk 0:01:11]} 27. Bg5+ {[%clk 0:00:20]}  Ke6 {[%clk 0:01:08]} 28. Bxh4 {[%clk 0:00:15]}  Nf4 {[%clk 0:01:08]} 29. Kd2 {[%clk 0:00:11]}  Rd7+ {[%clk 0:01:08]} 30. Kc2 {[%clk 0:00:09]}  Bd3+ {[%clk 0:01:05]} 31. Kb2 {[%clk 0:00:09]}  Rb7+ {[%clk 0:01:05]} 32. Ka1 {[%clk 0:00:08]}  Bxe4 {[%clk 0:01:03]} 33. Re8+ {[%clk 0:00:07]}  Kd6 {[%clk 0:00:59]} 34. Rd8+ {[%clk 0:00:07]}  Ke6 {[%clk 0:00:57]} 35. Rxc5 {[%clk 0:00:05]}  f6 {[%clk 0:00:49]} 36. Bg3 {[%clk 0:00:04]}  Nxg2 {[%clk 0:00:45]} 37. Re8+ {[%clk 0:00:03]}  Kf7 {[%clk 0:00:44]} 38. Rec8 {[%clk 0:00:02]}  Rb3 {[%clk 0:00:41]} 39. R5c7+ {[%clk 0:00:02]}  Ke6 {[%clk 0:00:41]} 40. Ka2 {[%clk 0:00:03]}  Bd5 {[%clk 0:00:39]} 41. Re8+ {[%clk 0:00:02]}  Kf5 {[%clk 0:00:39]} 42. Ka1 {[%clk 0:00:01]}  Rxa3+ {[%clk 0:00:39]} 43. Kb2 {[%clk 0:00:02]}  Rb3+ {[%clk 0:00:40]} 44. Kc2 {[%clk 0:00:02]}  Rb6 {[%clk 0:00:38]} 45. Rc5 {[%clk 0:00:02]}  Be4+ {[%clk 0:00:38]} 46. Kd2 {[%clk 0:00:02]}  Rb2+ {[%clk 0:00:36]} 47. Kc3 {[%clk 0:00:02]}  Rc2+ {[%clk 0:00:36]} 48. Kb4 {[%clk 0:00:03]}  Rxc5 {[%clk 0:00:33]} 49. Kxc5 {[%clk 0:00:03]}  Ne1 {[%clk 0:00:34]} 50. Kb6 {[%clk 0:00:03]}  Bd3 {[%clk 0:00:33]} 51. Rd8 {[%clk 0:00:03]}  Bb5 {[%clk 0:00:33]} 52. Rd6 {[%clk 0:00:03]}  Nf3 {[%clk 0:00:33]} 53. Rd8 {[%clk 0:00:03]}  g5 {[%clk 0:00:33]} 54. Rf8 {[%clk 0:00:03]}  Kg6 {[%clk 0:00:31]} 55. Rg8+ {[%clk 0:00:02]}  Kf7 {[%clk 0:00:31]} 56. Rh8 {[%clk 0:00:03]}  Bf1 {[%clk 0:00:27]} 57. h4 {[%clk 0:00:03]}  gxh4 {[%clk 0:00:27]} 58. Bxh4 {[%clk 0:00:02]}  Kg6 {[%clk 0:00:23]} 59. Bxf6 {[%clk 0:00:02]}  e4 {[%clk 0:00:18]} 60. Bd8 {[%clk 0:00:02]}  Bd3 {[%clk 0:00:18]} 61. Rf8 {[%clk 0:00:02]}  Kg7 {[%clk 0:00:17]} 62. Rf4 {[%clk 0:00:02]}  Kg6 {[%clk 0:00:18]} 63. Kc5 {[%clk 0:00:01]}  Nd2 {[%clk 0:00:17]} 64. Kd4 {[%clk 0:00:01]}  Nb3+ {[%clk 0:00:17]} 65. Ke3 {[%clk 0:00:01]}  Na1 {[%clk 0:00:17]} 66. Rf8 {[%clk 0:00:02]}  Nc2+ {[%clk 0:00:17]} 67. Kd2 {[%clk 0:00:02]}  Nd4 {[%clk 0:00:18]} 68. f4 {[%clk 0:00:02]}  Nf5 {[%clk 0:00:17]} 69. Rg8+ {[%clk 0:00:02]}  Kf7 {[%clk 0:00:17]} 70. Rg1 {[%clk 0:00:01]}  Bb5 {[%clk 0:00:16]} 71. Ra1 {[%clk 0:00:02]}  e3+ {[%clk 0:00:17]} 72. Ke1 {[%clk 0:00:02]}  Nd4 {[%clk 0:00:17]} 73. Bb6 {[%clk 0:00:02]}  Nc2+ {[%clk 0:00:17]} 74. Kd1 {[%clk 0:00:02]}  Nxa1 {[%clk 0:00:16]} 75. Bxe3 {[%clk 0:00:03]}  Nb3 {[%clk 0:00:16]} 76. Bb6 {[%clk 0:00:03]}  Ke6 {[%clk 0:00:17]} 77. Kc2 {[%clk 0:00:04]}  Ba4 {[%clk 0:00:16]} 78. Kc3 {[%clk 0:00:04]}  Nc1 {[%clk 0:00:16]} 79. Kb4 {[%clk 0:00:04]}  Bb5 {[%clk 0:00:17]} 80. Be3 {[%clk 0:00:04]}  Nd3+ {[%clk 0:00:17]} 81. Ka5 {[%clk 0:00:04]}  Ne1 {[%clk 0:00:18]} 82. Kb4 {[%clk 0:00:04]}  Nc2+ {[%clk 0:00:18]} 83. Kc3 {[%clk 0:00:03]}  Nxe3 {[%clk 0:00:19]} 84. Kb2 {[%clk 0:00:03]}  Nf5 {[%clk 0:00:20]} 85. Ka3 {[%clk 0:00:03]}  Kd5 {[%clk 0:00:21]} 86. Kb4 {[%clk 0:00:04]}  Ke4 {[%clk 0:00:22]} 87. Ka3 {[%clk 0:00:04]}  Kxf4 {[%clk 0:00:23]} 0-1


[Site "https://www.chess.com"]

[Event "Titled Tuesday Blitz June 15 2021"]
[White "Tristan, Leonardo"]
[Black "Steven_Rojas"]
[WhiteFideId "113816"]
[WhiteElo "2404"]
[BlackElo "2515"]
[Result "1-0"]
[Round "04"]
[TimeControl "180+1"]
[Date "2021.06.15"]
[WhiteClock "0:00:11"]
[BlackClock "0:00:03"]

1. d4 {[%clk 0:03:00]}  d5 {[%clk 0:02:59]} 2. Bf4 {[%clk 0:03:01]}  Nf6 {[%clk 0:02:55]} 3. e3 {[%clk 0:03:01]}  e6 {[%clk 0:02:55]} 4. Nf3 {[%clk 0:03:01]}  Bd6 {[%clk 0:02:56]} 5. Bg3 {[%clk 0:03:01]}  O-O {[%clk 0:02:55]} 6. c4 {[%clk 0:03:01]}  c6 {[%clk 0:02:30]} 7. Nc3 {[%clk 0:03:00]}  b6 {[%clk 0:02:17]} 8. Qc2 {[%clk 0:02:59]}  Bb7 {[%clk 0:02:14]} 9. O-O-O {[%clk 0:02:53]}  Qe7 {[%clk 0:02:14]} 10. Bd3 {[%clk 0:02:49]}  Nbd7 {[%clk 0:02:14]} 11. Rhe1 {[%clk 0:02:41]}  Rfd8 {[%clk 0:01:57]} 12. e4 {[%clk 0:02:41]}  dxe4 {[%clk 0:01:57]} 13. Nxe4 {[%clk 0:02:41]}  Nxe4 {[%clk 0:01:58]} 14. Rxe4 {[%clk 0:02:36]}  Nf8 {[%clk 0:01:41]} 15. Bh4 {[%clk 0:02:24]}  f6 {[%clk 0:01:41]} 16. Ree1 {[%clk 0:02:03]}  Qf7 {[%clk 0:01:36]} 17. c5 {[%clk 0:01:49]}  Bf4+ {[%clk 0:01:19]} 18. Kb1 {[%clk 0:01:49]}  Rd7 {[%clk 0:00:59]} 19. Bg3 {[%clk 0:01:28]}  Bc7 {[%clk 0:00:57]} 20. Be4 {[%clk 0:01:22]}  Rad8 {[%clk 0:00:55]} 21. Rc1 {[%clk 0:01:09]}  Rc8 {[%clk 0:00:54]} 22. Bd3 {[%clk 0:01:05]}  Rcd8 {[%clk 0:00:53]} 23. Bc4 {[%clk 0:01:05]}  Re8 {[%clk 0:00:52]} 24. Re2 {[%clk 0:00:47]}  b5 {[%clk 0:00:53]} 25. Bb3 {[%clk 0:00:43]}  Rde7 {[%clk 0:00:27]} 26. Rce1 {[%clk 0:00:42]}  Bc8 {[%clk 0:00:27]} 27. Ka1 {[%clk 0:00:38]}  Bxg3 {[%clk 0:00:25]} 28. hxg3 {[%clk 0:00:37]}  a5 {[%clk 0:00:26]} 29. a3 {[%clk 0:00:37]}  a4 {[%clk 0:00:24]} 30. Ba2 {[%clk 0:00:37]}  g5 {[%clk 0:00:21]} 31. g4 {[%clk 0:00:36]}  Kg7 {[%clk 0:00:22]} 32. Rh1 {[%clk 0:00:33]}  Ng6 {[%clk 0:00:22]} 33. g3 {[%clk 0:00:33]}  Qf8 {[%clk 0:00:17]} 34. Bb1 {[%clk 0:00:33]}  Qg8 {[%clk 0:00:16]} 35. Ree1 {[%clk 0:00:32]}  Bd7 {[%clk 0:00:12]} 36. Rh5 {[%clk 0:00:32]}  Rd8 {[%clk 0:00:12]} 37. Reh1 {[%clk 0:00:32]}  Be8 {[%clk 0:00:13]} 38. Qc3 {[%clk 0:00:22]}  Kf8 {[%clk 0:00:12]} 39. d5 {[%clk 0:00:20]}  e5 {[%clk 0:00:10]} 40. d6 {[%clk 0:00:20]}  Rg7 {[%clk 0:00:10]} 41. Bf5 {[%clk 0:00:17]}  Qd5 {[%clk 0:00:09]} 42. Rxh7 {[%clk 0:00:11]}  Rxh7 {[%clk 0:00:08]} 43. Rxh7 {[%clk 0:00:12]}  Qd1+ {[%clk 0:00:09]} 44. Ka2 {[%clk 0:00:13]}  Rd7 {[%clk 0:00:09]} 45. Bxd7 {[%clk 0:00:12]}  Qd5+ {[%clk 0:00:08]} 46. Kb1 {[%clk 0:00:12]}  Qd1+ {[%clk 0:00:06]} 47. Qc1 {[%clk 0:00:12]}  Qxf3 {[%clk 0:00:06]} 48. Bxe8 {[%clk 0:00:12]}  Kxe8 {[%clk 0:00:04]} 49. Qc2 {[%clk 0:00:12]}  Qh1+ {[%clk 0:00:03]} 50. Rxh1 {[%clk 0:00:11]} 1-0


[Site "https://www.chess.com"]